Cogmind - Beta 12 X1 @@@ ROGUE MODE // 2022.08.31 @ 15:33:23 Player: btmk16 Result: Destroyed by 8R-AWN with 8R-AWN's Boregun Performance ------------- Evolutions (1) 500 Regions Visited (5) 1000 Robots Destroyed (73) 365 Value Destroyed (1789) 1789 Prototype IDs (6) 120 Alien Tech Used (0) 0 Bonus (-65) -65 TOTAL SCORE: 3709 Bonus ------- High Alert Combat Kills 79 Friendly Fire -144 Cogmind --------- Core Integrity 0/400 Matter 86/300 Energy 280/280 System Corruption 0% Temperature Cool (63) Movement Core (350) Ox6 Location -9/Exiles Parts ------- > --- POWER (1) -------- Cooled Ion Engine > --- PROPULSION (2) --- (None) > --- UTILITY (3) ------ Improved Targeting Computer Hardened Light Armor Plating > --- WEAPON (3) ------- Improved Assault Rifle Improved Assault Rifle > --- INVENTORY (5) ---- Light Armor Plating Improved Assault Rifle Peak State ------------ > --- POWER ------------ Cooled Ion Engine > --- PROPULSION ------- Light Treads Light Treads > --- UTILITY ---------- Large Storage Unit Improved Targeting Computer Improved Targeting Computer > --- WEAPON ----------- Improved Assault Rifle Improved Assault Rifle Improved Assault Rifle > --- INVENTORY -------- Light Treads Light Treads Light Treads Visual Processing Unit Experimental Sensor Array Improved Terrain Scanner Improved Targeting Computer Improved Targeting Computer Light Armor Plating Medium Armor Plating Tractor Beam Improved Assault Rifle Improved Assault Rifle Improved Assault Rifle Mini Grenade Launcher [Rating: 22] Favorites ----------- Power Ion Engine Engine Ion Engine Propulsion Light Treads Treads Light Treads Utility Large Storage Unit Device Seismic Detector Storage Large Storage Unit Processor Improved Targeting Computer Protection Hardened Light Armor Plating Weapon Improved Assault Rifle Energy Gun Improved Medium Laser Ballistic Gun Improved Assault Rifle Launcher Mini Grenade Launcher Build | -11 -10 -10 -9 -9 -9 ------- Run | Scr Mat Min Mat Min Exi Slots Evolved 2 | . . . 2 . . Power . | . . . . . . Propulsion . | . . . . . . Utility 1 | . . . 1 . . Weapon 1 | . . . 1 . . Parts Attached 57 | 7 12 6 25 . 7 Power 6 | 1 1 2 2 . . Engine 6 | 1 1 2 2 . . Core . | . . . . . . Reactor . | . . . . . . Propulsion 16 | 2 1 2 11 . . Treads 16 | 2 1 2 11 . . Leg . | . . . . . . Wheel . | . . . . . . Hover . | . . . . . . Flight . | . . . . . . Utility 12 | 2 1 1 5 . 3 Device 3 | 1 . 1 1 . . Storage 3 | 1 1 . 1 . . Processor 3 | . . . 3 . . Hackware . | . . . . . . Protection 3 | . . . . . 3 Artifact . | . . . . . . Weapon 23 | 2 9 1 7 . 4 Energy Gun 2 | . 1 1 . . . Energy Cannon . | . . . . . . Ballistic Gun 15 | 2 4 . 6 . 3 Ballistic Cannon . | . . . . . . Launcher 6 | . 4 . 1 . 1 Special Weapon . | . . . . . . Impact Weapon . | . . . . . . Slashing Weapon . | . . . . . . Piercing Weapon . | . . . . . . Special Melee Weapon . | . . . . . . Unidentified Prototypes 2 | . 1 . 1 . . Parts Lost 13 | . . 3 3 . 7 Power 2 | . . 1 1 . . Propulsion 3 | . . 1 . . 2 Utility 2 | . . . 1 . 1 Weapon 6 | . . 1 1 . 4 Highest Loss Streak 7 | . . 1 2 . 7 To Critical Strikes . | . . . . . . Average Slot Usage (%) 99 | . 100 99 98 100 96 Engine 12 | . 14 14 11 11 11 Treads 24 | . 28 27 22 22 20 Device 7 | . 14 14 1 . . Storage 12 | . 14 14 11 11 9 Processor 9 | . . . 19 22 20 Energy Gun 8 | . 5 23 3 . . Ballistic Gun 20 | . 22 4 28 22 22 Naked Turns . | . . . . . . Heaviest Build 37 | 12 31 32 37 35 35 Greatest Support 40 | 40 40 40 40 40 40 Greatest Overweight (x) . | . . . . . . Average Overweight (x) . | . . . . . . Largest Inventory Capacity 15 | 8 15 15 15 15 15 Average Capacity 14 | 7 13 15 15 15 13 Most Carried 15 | 8 15 15 15 15 15 Average Carried 13 | 4 12 14 14 15 13 Final Capacity 15 | 8 15 15 15 15 5 Final Carried 15 | 8 15 15 15 15 2 Class Distribution -------------------- 59% | Mutant 35% | Gunner 5% | Scavenger-Gunner Dominant Class ---------------- Mutant | -10/Materials Mutant | -10/Mines Gunner | -9/Materials Mutant | -9/Mines Mutant | -9/Exiles Resources | -11 -10 -10 -9 -9 -9 ----------- Run | Scr Mat Min Mat Min Exi Matter Collected 1521 | 302 270 101 848 . . Remotely . | . . . . . . Salvage Created 2672 | 125 357 353 1797 24 16 Parts 173 | 14 31 7 121 . . Haulers Intercepted 7 | . 2 . 5 . . Recyclers Shooed 1 | . . 1 . . . Parts Field Recycled . | . . . . . . Retrieved Matter . | . . . . . . Parts Self-Destructed . | . . . . . . Prevented . | . . . . . . Kills | -11 -10 -10 -9 -9 -9 ------- Run | Scr Mat Min Mat Min Exi Combat Hostiles Destroyed 63 | . 10 6 29 13 5 Guns 40 | . 5 6 29 . . AOE 23 | . 5 . . 13 5 Classes Destroyed 13 | 2 5 . 5 1 . Worker 7 | . 4 . 3 . . Builder 4 | . 2 . 2 . . Tunneler 4 | 2 1 . 1 . . Hauler 7 | . 2 . 5 . . Recycler 3 | 1 . 1 1 . . Mechanic 1 | . . . 1 . . Operator 1 | . . . 1 . . Watcher 1 | . . . 1 . . Swarmer 5 | . 3 . 2 . . Grunt 29 | . 7 6 16 . . Duelist 1 | . . . 1 . . Sentry 10 | . . . 10 . . Assembled 18 | . . . . 13 5 Best Kill Streak 13 | 3 10 3 6 13 5 Combat Bots Only 13 | . 4 2 5 13 5 Max Kills in Single Turn 4 | 1 3 1 2 4 3 Gunslinging 1 | . . . 1 . . Exploded 4 | . 2 . . 4 3 Melee . | . . . . . . Uniques/NPCs Destroyed . | . . . . . . Combat | -11 -10 -10 -9 -9 -9 -------- Run | Scr Mat Min Mat Min Exi Damage Taken 3002 | . 308 490 962 224 1018 Core 554 | . 50 84 169 26 225 Absorbed by Shields . | . . . . . . Core Remaining (%) 73 | 100 . 46 . . . Volleys Fired 163 | 9 28 28 81 7 10 Largest 3 | 2 2 2 3 1 3 Hottest 135 | 40 76 112 135 30 69 Shots Fired 392 | 18 50 56 239 7 22 Gun 375 | 18 43 56 238 . 20 Cannon . | . . . . . . Launcher 17 | . 7 . 1 7 2 Special . | . . . . . . Kinetic 293 | 18 32 17 206 . 20 Thermal 82 | . 11 39 32 . . Explosive 17 | . 7 . 1 7 2 Electromagnetic . | . . . . . . Robot Hit Streak 26 | 4 6 7 26 3 18 Robot Miss Streak 3 | 1 3 2 3 2 1 Penetration Max . | . . . . . . Secondary Targets 9 | . . 1 8 . . Max Gunslinging Chain 1 | . . 1 1 . . Shots Hit Robots 274 | 11 29 36 173 4 21 Core Hits 147 | 5 29 11 70 20 12 Critical Kills . | . . . . . . Critical Parts Destroyed 1 | . . . 1 . . Critical Strikes 5 | . . 1 4 . . Burn 4 | . . 1 3 . . Destroy 1 | . . . 1 . . Melee Attacks . | . . . . . . Impact . | . . . . . . Slashing . | . . . . . . Piercing . | . . . . . . Sneak Attacks . | . . . . . . Combat Hostiles . | . . . . . . Follow-up Attacks . | . . . . . . Damage Inflicted 6177 | 127 1279 599 2742 841 589 Guns 4078 | 127 312 599 2742 . 298 Cannons . | . . . . . . Explosions 2099 | . 967 . . 841 291 Melee . | . . . . . . Ramming . | . . . . . . Kinetic 3082 | 127 241 134 2282 . 298 Thermal 996 | . 71 465 460 . . Explosive 2099 | . 967 . . 841 291 Electromagnetic . | . . . . . . Impact . | . . . . . . Slashing . | . . . . . . Piercing . | . . . . . . Highest Corruption . | . . . . . . Average Corruption . | . . . . . . Corruption Purged . | . . . . . . Corruption Blocked . | . . . . . . Overload Shots . | . . . . . . Overflow Damage 55 | . 22 . . 25 8 Projectiles . | . . . . . . Explosions 55 | . 22 . . 25 8 Melee . | . . . . . . Knockbacks . | . . . . . . Impact . | . . . . . . Kinetic . | . . . . . . Secondary . | . . . . . . Self-Inflicted Damage 199 | . 102 . . . 97 Shots 4 | . 2 . . . 2 Rammed . | . . . . . . Targets Rammed 1 | . 1 . . . . Kicked . | . . . . . . Crushed 1 | . 1 . . . . Highest Temperature 323 | . 72 305 323 10 141 Average Temperature 73 | . 26 102 67 10 77 Received Heat Transfer 1178 | . 69 312 537 120 140 Effects 1 | . . 1 . . . Energy Bleed 1 | . . 1 . . . Siege Activations . | . . . . . . Robots Corrupted . | . . . . . . Combat Hostiles . | . . . . . . Parts Fried . | . . . . . . Impact Corruptions . | . . . . . . Robots Melted . | . . . . . . Combat Hostiles . | . . . . . . Parts Melted 4 | . . 2 2 . . Heat Transferred 2442 | . 148 1073 1221 . . Parts Sabotaged . | . . . . . . Parts Stolen . | . . . . . . Parts Stripped . | . . . . . . Power Chain Reactions . | . . . . . . Missiles Intercepted . | . . . . . . Alert | -11 -10 -10 -9 -9 -9 ------- Run | Scr Mat Min Mat Min Exi Peak Influence 631 | 15 292 177 631 102 . Initial 82 | . 9 82 7 12 . Average 165 | 4 108 66 271 78 . Maximum Alert Level 2 | . 1 . 2 . . Low Security (%) 73 | 100 81 100 49 100 . Level 1 13 | . 18 . 19 . . Level 2 13 | . . . 30 . . Level 3 . | . . . . . . Level 4 . | . . . . . . Level 5 . | . . . . . . High Security . | . . . . . . Max Security . | . . . . . . Squads Dispatched 7 | . 1 . 6 . . Investigation 4 | . 1 . 3 . . Extermination . | . . . . . . Reinforcement 3 | . . . 3 . . Assault . | . . . . . . Garrison . | . . . . . . Intercept . | . . . . . . Searches Triggered . | . . . . . . Construction Impeded . | . . . . . . Haulers Reinforced . | . . . . . . Active Scanning Responses . | . . . . . . Cargo Convoy Interrupts . | . . . . . . Stealth | -11 -10 -10 -9 -9 -9 --------- Run | Scr Mat Min Mat Min Exi Distress Signals 3 | . . 1 2 . . Communications Jammed . | . . . . . . Distress Signals . | . . . . . . Times Spotted 92 | . 19 6 41 18 8 Peak Tracking Total 15 | . 5 2 8 15 9 Tactical Retreats 2 | . . . 2 . . Traps | -11 -10 -10 -9 -9 -9 ------- Run | Scr Mat Min Mat Min Exi Traps Triggered 4 | . 1 . 3 . . Indirectly . | . . . . . . Trap Hack Attempts . | . . . . . . Triggered . | . . . . . . Disarmed . | . . . . . . Reprogrammed . | . . . . . . Reused . | . . . . . . Traps Extracted . | . . . . . . Installed . | . . . . . . Triggered . | . . . . . . Machines | -11 -10 -10 -9 -9 -9 ---------- Run | Scr Mat Min Mat Min Exi Machines Disabled 5 | . 2 1 . . 2 Max in Single Turn 2 | . 1 1 . . 2 Machines Sabotaged . | . . . . . . Garrisons Compromised . | . . . . . . Overloaded Fab Kills . | . . . . . . Hacking | -11 -10 -10 -9 -9 -9 --------- Run | Scr Mat Min Mat Min Exi Machines Accessed 16 | . 7 . 8 . 1 Terminals 15 | . 7 . 8 . . Fabricators . | . . . . . . Repair Stations . | . . . . . . Recycling Units . | . . . . . . Scanalyzers . | . . . . . . Garrison Access . | . . . . . . Total Hacks 43 | . 20 . 22 . 1 Successful 26 | . 11 . 14 . 1 Failed 17 | . 9 . 8 . . Catastrophic 2 | . . . 2 . . Database Lockouts . | . . . . . . Manual 16 | . 10 . 6 . . Terminals 42 | . 20 . 22 . . Fabricators . | . . . . . . Repair Stations . | . . . . . . Recycling Units . | . . . . . . Scanalyzers . | . . . . . . Garrison Access . | . . . . . . Terminal Hacks 20 | . 8 . 11 . 1 Record 1 | . . . . . 1 Part Schematic 1 | . 1 . . . . Robot Analysis 2 | . 1 . 1 . . Prototype ID Bank 2 | . 1 . 1 . . Emergency Access Points 2 | . . . 2 . . Alert Level 3 | . 1 . 2 . . Unreport Threat 3 | . . . 3 . . Locate Traps 1 | . 1 . . . . Hauler Manifests 1 | . 1 . . . . Registered Components 1 | . . . 1 . . Registered Prototypes 1 | . . . 1 . . Zone Layout 2 | . 2 . . . . Fabricator Hacks . | . . . . . . Repair Station Hacks . | . . . . . . Recycling Unit Hacks . | . . . . . . Scanalyzer . | . . . . . . Garrison Access Hacks . | . . . . . . Unauthorized Hacks 6 | . 3 . 3 . . Terminals 6 | . 3 . 3 . . Track 1 | . . . 1 . . Botnet 5 | . 3 . 2 . . Fabricators . | . . . . . . Repair Stations . | . . . . . . Recycling Units . | . . . . . . Scanalyzers . | . . . . . . Garrison Access . | . . . . . . Data Cores Recovered . | . . . . . . Used . | . . . . . . Hacking Detections 15 | . 7 . 8 . . Full Trace Events 1 | . 1 . . . . Feedback Events . | . . . . . . Feedback Blocked . | . . . . . . Robot Schematics Acquired . | . . . . . . Robots Built . | . . . . . . Authchips . | . . . . . . Time . | . . . . . . Total Robot Build Rating . | . . . . . . Part Schematics Acquired 1 | . 1 . . . . Parts Built . | . . . . . . Authchips . | . . . . . . Time . | . . . . . . Total Part Build Rating . | . . . . . . Parts Repaired . | . . . . . . Time . | . . . . . . Parts Recycled . | . . . . . . Recycled Matter . | . . . . . . Retrieved Matter . | . . . . . . Retrieved Components . | . . . . . . Parts Scanalyzed . | . . . . . . Part Schematics Acquired . | . . . . . . Parts Damaged . | . . . . . . Bothacking | -11 -10 -10 -9 -9 -9 ------------ Run | Scr Mat Min Mat Min Exi Used RIF Installer . | . . . . . . Robots Hacked . | . . . . . . Non-combat . | . . . . . . Combat . | . . . . . . Robot Hacks Applied . | . . . . . . Relay Couplers Released . | . . . . . . Fabnet Peak Effective % . | . . . . . . Robots Rewired . | . . . . . . Allies Hacked . | . . . . . . Hacks Repelled . | . . . . . . Allies | -11 -10 -10 -9 -9 -9 -------- Run | Scr Mat Min Mat Min Exi Total Allies . | . . . . . . Largest Group . | . . . . . . Highest-Rated Group . | . . . . . . Highest-Rated Ally . | . . . . . . Total Orders . | . . . . . . Ally Attacks . | . . . . . . Total Damage . | . . . . . . Kills . | . . . . . . Allies Corrupted . | . . . . . . Allies Melted . | . . . . . . Intel | -11 -10 -10 -9 -9 -9 ------- Run | Scr Mat Min Mat Min Exi Robot Analysis Total 2 | . 1 . 1 . . Derelict Logs Recovered 2 | . . 2 . . . Drone Launches . | . . . . . . Drone Recoveries . | . . . . . . Exploration | -11 -10 -10 -9 -9 -9 ------------- Run | Scr Mat Min Mat Min Exi Turns Passed 4070 | 107 1066 941 1638 32 286 Spaces Moved 2132 | 43 594 529 800 12 154 Core 4 | 4 . . . . . Treads 2128 | 39 594 529 800 12 154 Legs . | . . . . . . Wheels . | . . . . . . Hover . | . . . . . . Flight . | . . . . . . Fastest Speed 50 | 50 160 160 160 160 160 Average Speed 159 | 149 160 160 160 160 160 Slowest Speed 160 | 160 160 160 160 160 160 Overloaded Moves . | . . . . . . Propulsion Burnouts . | . . . . . . Robots Hopped . | . . . . . . Cave-ins Triggered . | . . . . . . Exploration Rate (%) 57 | 4 97 99 89 13 40 Regions Visited 5 Branch Regions 3 Pre-discovered Areas 2 | . . 1 . . 1 Known Exits Taken 1 | . . 1 . . . Unknown Exits Taken 4 | 1 1 . 1 1 . Scrap Searched 3 | . . 3 . . . Spaces Dug 19 | . 12 . 7 . . Terrain Destroyed 142 | . 61 . 7 49 25 Melee . | . . . . . . Projectile . | . . . . . . AOE 142 | . 61 . 7 49 25 Terrain Rammed . | . . . . . . Walls Destroyed . | . . . . . . Machines Disabled . | . . . . . . Actions | -11 -10 -10 -9 -9 -9 --------- Run | Scr Mat Min Mat Min Exi Total 2477 | 66 661 567 989 18 176 Wait 55 | . 7 2 46 . . Move 2128 | 42 594 528 799 11 154 Hop . | . . . . . . Pick Up 36 | 8 12 1 13 . 2 Fast Attach 11 | 7 . 1 2 . 1 Attach 11 | . . 3 5 . 3 Detach 1 | . . 1 . . . Swap 35 | . 12 2 18 . 3 Drop 37 | . 8 1 25 . 3 Fire 163 | 9 28 28 81 7 10 Melee . | . . . . . . Ram . | . . . . . . Kick . | . . . . . . Crush . | . . . . . . Escape Stasis . | . . . . . . Rewire . | . . . . . . Trap . | . . . . . . Miscellaneous . | . . . . . . Route ------- -11/Scrapyard -10/Materials (discovered 4 exits: *Mat x3 / [*Min]) -10/Mines (discovered 2 exits: *Mat x2) -9/Materials (discovered 4 exits: [*Mat x3] / [*Min]) -9/Mines -9/Exiles (discovered 1 exit: [*Min]) History --------- Turn | Location | Event 39 | -11/Scrapyard | Discovered new exit (range 15) 108 | -11/Scrapyard | Entered Materials 267 | -10/Materials | Discovered new exit (range 7) 315 | -10/Materials | Build established: Mutant 451 | -10/Materials | Discovered new exit (range 16) 610 | -10/Materials | Discovered new exit (range 18) 1077 | -10/Materials | Discovered new exit (range 16) 1174 | -10/Materials | Entered Mines 1263 | -10/Mines | Discovered new exit (range 6) 1453 | -10/Mines | Found a damaged Exp. Sensor Array with a note attached 1457 | -10/Mines | Found Prototype Device 1464 | -10/Mines | Identified exit to Materials 1975 | -10/Mines | Core integrity fell below 50% 2115 | -10/Mines | Entered Materials 2115 | -9/Materials | Evolved 2 slots: Utility x1, Weapon x1 2403 | -9/Materials | Discovered new exit (range 16) 2730 | -9/Materials | Build established: Gunner 2791 | -9/Materials | Discovered new exit (range 14) 3119 | -9/Materials | Discovered new exit (range 7) 3549 | -9/Materials | Discovered new exit (range 4) 3753 | -9/Materials | Entered Mines 3754 | -9/Mines | Assembled infested the area 3779 | -9/Mines | Deemed a non-threat by the Exiles lab entrance 3779 | -9/Mines | Discovered new exit (range 5) 3785 | -9/Mines | Entered Exiles 3791 | -9/Exiles | Destroyed 13 combat bots 3809 | -9/Exiles | Discovered new exit (range 15) 3829 | -9/Exiles | Met 8R-AWN 3853 | -9/Exiles | Met EX-HEX 3923 | -9/Exiles | Met EX-DEC 3934 | -9/Exiles | Learned location of Zion (-7) 4042 | -9/Exiles | Attacked by the Exiles 4054 | -9/Exiles | Core integrity fell below 50% 4061 | -9/Exiles | Core integrity fell below 20% 4071 | -9/Exiles | Destroyed by 8R-AWN with 8R-AWN's Boregun Last Messages --------------- 04060_ Penetrated by HV Slug. 04060_ HV Slug penetrates Earth. 04060_ Penetrated by HV Slug. 04060_ HV Slug penetrates Earth. 04061_ The unstable cave ceiling collapses. 04062_ as-96149 destroyed. 04062_ as-99343 destroyed. 04062_ Penetrated by HV Slug. 04062_ HV Slug penetrates Earth. 04062_ Penetrated by HV Slug. 04062_ HV Slug penetrates Earth. 04062_ Mni. Grenade Launcher destroyed. 04064_ HV Slug penetrates Wall. 04064_ Penetrated by HV Slug. 04064_ HV Slug penetrates Wall. 04066_ Penetrated by HV Slug. 04066_ HV Slug penetrates Wall. 04069_ Penetrated by HV Slug. 04069_ HV Slug penetrates Wall. 04069_ Penetrated by HV Slug. Map ----- +----------------------------------------------------+ | ?????????????????????????????????????????????????? | | ?????????????????????????????????????????????????? | | ?????????????????????????????????????????????????? | | ?????????????????????????????????????????????????? | | ?????????????????????????????????????????????????? | | ?????????????????????????????????????????????????? | | ?????????????????????????????????????????????????? | | ?????????????????????????????????????????????????? | | ?????????????????????????????????????????????????? | | ?????????????????????????????????????????????????? | | ?????????????????????????????????????????????????? | | ?????????????????????????????????????????????????? | | ?????????????????????????????????????????????????? | | ?????????????????????????????????????????????????? | | ?????????????????????????????????????????????????? | | ?????????????????????????????????????????????????? | | ?????????????????????????????????????????????????? | | ????????????????????????????????????????????? < ? | | #########???????????????????????????????????? # | | """"""""##??????????????????????????????????? ? | | """ """"##?????????????????????????????????# #? | | "" " #?????????########??????????????## ## | | " """#?????????# ##?????????????# # | | " "#????????## ##????????????# # | | " "##???????# = #####???????## ? | | ""###??????# g@ ;# #?? | | """#??????# =! ######??????# #?? | | "#????### ! ##????????### #??? | | ##???# ! ########## #??? | | ##?##a #""""## #???? | | ### * ##??? | | a ## * #??? | | #### ##?? | | ""#?#"""""#### ### | | #"""##?#######??#### * # | | ######??????????????##### | | ##???????????????????????### | | " ##??????????????????????????### | | """ ""#?????????????????????????????### | | ""#" "##??????????????????????????????#" | | """##"""""""##???????????????????????????????#### | | ""###########???????????????????????????????????# | | ##??????????????????????????????????????????????## | | ?????????????????????????????????????????????????# | | ?????????????????????????????????????????????????? | | ?????????????????????????????????????????????????? | | ?????????????????????????????????????????????????? | | ?????????????????????????????????????????????????? | | ?????????????????????????????????????????????????? | | ?????????????????????????????????????????????????? | +----------------------------------------------------+ Best States ------------- Heat Dissipation 42 Energy Generation 14 Energy Capacity 280 Matter Stores 300 Matter Capacity 300 Sight Range 16 Terrain Scan Density 10 Armor Coverage 375 Evasion (%) 40 Targeting Accuracy 12 Recoil Reduction 2 Item Schematics ----------------- Hcp. Storage Unit | -10/Materials | Hacked Robot Schematics ------------------ None Fabricated ------------ Nothing Alien Tech Used ----------------- None Achievements -------------- None Challenges ------------ None Game ------ Seed CompositeLaserProjector Manual? 0 Play Time 00:24:36 Cumulative 473.3 hours Start 2022.08.31 @ 13:18:33 End 2022.08.31 @ 15:33:23 Sessions 1 Manual Loads 0 Difficulty Rogue Special Mode None Game No. 537 Rogue 536 Adventurer 0 Explorer 1 Win Type - Total 15 Types 10/0/2/3/0/0/0/0/0 Lore% 80 Gallery% 88 Achievement% 70 Wizard Run 0 Options --------- ASCII 0 Keyboard 1 Movement Vi Keybinds 0 Fullscreen 1 Font 18/SmallcapsGlow Map View 76x50 Tactical HUD 1 Map Filters NONE Filters NONE Steam 1 RUN: 0a574c44-1478-4022-8a6c-b2a7237477f0